fUST/lending_fUST_20251110
["ID","MTS","AMOUNT","RATE_DAILY","PERIOD"]
[393500031,1762731895691,-852.0,0.0001758,2]
[393500032,1762731895720,-579.4918287,0.0001758,2]
[393500033,1762731958886,-150.0,0.00017585,2]
[393500034,1762731958909,-33.94803691,0.000176,2]
[393500035,1762731972907,-223.81142452,0.000176,2]
[393500036,1762731988367,-258.0,0.0001778,2]
[393500037,1762731988399,-572.0,0.0001778,2]
[393500038,1762731988432,-300.0,0.0001778,2]
[393500039,1762731995782,167.74507874,0.00017682,2]
[393500040,1762731997971,301.94114173,0.00017682,2]
[393500041,1762732000134,536.78425197,0.00017682,2]
[393500042,1762732010914,219.61195308,0.00017682,2]
[393500043,1762732013205,395.30151554,0.00017682,2]
[393500044,1762732015376,702.75824984,0.00017682,2]
[393500045,1762732022901,300.0,0.0001778,2]
[393500048,1762732082573,300.0,0.0001778,2]
[393500050,1762732124585,391.04833352,0.00017682,2]
[393500051,1762732126447,703.88700033,0.00017682,2]
[393500052,1762732128224,1251.35466726,0.00017682,2]
[393500053,1762732138326,270.25849896,0.00017682,2]
[393500054,1762732140646,486.46529813,0.00017682,2]
[393500055,1762732142716,864.82719667,0.00017682,2]
[393500173,1762732240641,-600.0,0.00018136,2]
[393500175,1762732240652,-615.09999998,0.00018136,2]
[393500267,1762732241764,-3e-08,0.00018136,2]
[393500372,1762732243650,-953.42169448,0.00018136,2]
[393500373,1762732243660,-354.73749921,0.00018136,2]
[393500374,1762732243846,-285.816,0.00018136,2]
[393500381,1762732247157,-238.44650079,0.00018136,2]
[393500382,1762732247167,-150.0,0.00018294,2]
[393500383,1762732247175,-193.78226743,0.00018451,2]
[393500384,1762732247184,-162.60145212,0.00019566,2]
[393500385,1762732247194,-649.75540266,0.00019566,2]
[393500386,1762732247203,-2021.899296,0.00019575,2]
[393500387,1762732247213,-720.0,0.0001995,2]
[393500388,1762732247222,-454.415112,0.00020187,2]
[393500389,1762732247231,-177.0,0.00020294,2]
[393500390,1762732247240,-300.0,0.00020413,2]
[393500391,1762732247249,-2137.3601738,0.00020414,2]
[393500392,1762732247259,-376.90645692,0.00020595,2]
[393500393,1762732247268,-168.0,0.00020615,2]
[393500394,1762732247277,-651.9283073,0.00020646,2]
[393500395,1762732247286,-711.40068423,0.0002065,7]
[393500396,1762732247296,-168.635705,0.00020695,2]
[393500397,1762732247305,-968.556894,0.00020811,2]
[393500398,1762732247315,-578.08392441,0.00021279,7]
[393500399,1762732247324,-168.0,0.00021584,2]
[393500400,1762732247334,-402.8216415,0.00021679,2]
[393500401,1762732247346,-1609.67527942,0.00021679,2]
[393500402,1762732247356,-168.0,0.00021748,2]
[393500403,1762732247365,-500.0,0.00021844,2]
[393500404,1762732247375,-526.36,0.00021845,20]
[393500405,1762732247384,-864.0,0.00021945,20]
[393500406,1762732247394,-156.04,0.00022,7]
[393500407,1762732247403,-204.0,0.00022294,2]
[393500408,1762732247412,-228.41489854,0.0002282,2]
[393500409,1762732247422,-912.74593458,0.0002282,2]
[393500410,1762732247431,-151.35200591,0.0002282,2]
[393500411,1762732247440,-500.0,0.00022933,2]
[393500412,1762732247450,-193.73508454,0.00023389,2]
[393500413,1762732248520,-530.62970136,0.00023389,2]
[393500414,1762732248529,-169.03263289,0.00023497,2]
[393500415,1762732248539,-323.32766575,0.00023642,2]
[393500418,1762732373417,848.02681423,0.0001778,2]
[393500419,1762732373450,9151.97318577,0.0001778,2]
[393500420,1762732396106,304.55,0.0001778,2]
[393500423,1762732604589,459.532792,0.00013699,2]
[393500454,1762733432779,-333.58262833,0.00018281,2]
[393500461,1762733432789,-18.01565567,0.00018281,2]
[393500469,1762733435423,200.0,0.0003,120]
[393500470,1762733435747,200.0,0.000317,120]
[393500479,1762733438585,-867.98434433,0.00018281,2]
[393500480,1762733438594,-16.13965553,0.00018587,2]
[393500481,1762733438606,-133.86034447,0.00018587,2]
[393500482,1762733438616,-600.44873099,0.00018893,2]
[393500483,1762733438626,-262.29,0.0001923,2]
[393500484,1762733438637,-1067.46441064,0.00019506,2]
[393500485,1762733438647,-459.532792,0.00020187,2]
[393500486,1762733438657,-942.0,0.00020284,2]
[393500487,1762733438667,-300.0,0.00020284,2]
[393500488,1762733438677,-8528.2126488,0.00020285,2]
[393500489,1762733438687,-1000.0,0.00020422,2]
[393500490,1762733438696,-177.0,0.00020587,2]
[393500491,1762733438706,-999.0,0.000211,2]
[393500492,1762733438716,-893.47615282,0.0002214,7]
[393500493,1762733438726,-500.0,0.00022466,2]
[393500494,1762733438735,-5191.24985395,0.00022467,2]
[393500495,1762733438747,-736.12090922,0.00022467,2]
[393500520,1762733443930,-353.83491488,0.00020249,2]
[393500522,1762733447015,-1221.5924931,0.00020249,2]
[393500523,1762733447027,-3361.44988542,0.00020249,2]
[393500524,1762733447037,-4072.63923683,0.00022467,2]
[393500525,1762733447047,-204.0,0.00022587,2]
[393500526,1762733447057,-533.48315617,0.00023071,2]
[393500527,1762733447066,-500.0,0.0002316,2]
[393500528,1762733447076,-500.0,0.0002316,2]
[393500529,1762733447085,-500.0,0.0002316,2]
[393500530,1762733447094,-500.0,0.0002316,2]
[393500531,1762733447104,-500.0,0.0002316,2]
[393500532,1762733447113,-500.0,0.0002316,2]
[393500533,1762733447125,-748.88807713,0.0002316,2]
[393500534,1762733447136,-500.0,0.0002316,2]
[393500535,1762733447147,-500.0,0.0002316,2]
[393500536,1762733447157,-500.0,0.0002316,2]
[393500537,1762733447241,-500.0,0.0002316,2]
[393500538,1762733447276,-500.0,0.0002316,2]
[393500539,1762733447286,-500.0,0.0002316,2]
[393500540,1762733447295,-500.0,0.0002316,2]
[393500541,1762733447304,-748.88807713,0.0002316,2]
[393500542,1762733447313,-500.0,0.0002316,2]
[393500543,1762733447323,-500.0,0.0002316,2]
[393500544,1762733447332,-500.0,0.0002316,2]
[393500545,1762733447341,-500.0,0.0002316,2]
[393500546,1762733447351,-501.97676491,0.0002316,2]
[393500547,1762733447360,-500.0,0.0002316,2]
[393500548,1762733447369,-500.0,0.0002316,2]
[393500549,1762733447378,-500.0,0.0002316,2]
[393500550,1762733447387,-500.0,0.0002316,2]
[393500551,1762733447398,-748.88807713,0.0002316,2]
[393500552,1762733447407,-500.0,0.0002316,2]
[393500553,1762733447416,-500.0,0.0002316,2]
[393500554,1762733447425,-500.0,0.0002316,2]
[393500555,1762733447434,-500.0,0.0002316,2]
[393500556,1762733447443,-500.0,0.0002316,2]
[393500557,1762733447452,-500.0,0.0002316,2]
[393500558,1762733447461,-748.88807713,0.0002316,2]
[393500559,1762733447470,-500.0,0.0002316,2]
[393500560,1762733447479,-500.0,0.0002316,2]
[393500561,1762733447489,-230.48087297,0.0002316,2]
[393500562,1762733447499,-500.0,0.0002316,2]
[393500563,1762733447508,-500.0,0.0002316,2]
[393500564,1762733447517,-500.0,0.0002316,2]
[393500565,1762733447526,-238.23661777,0.0002316,2]
[393500566,1762733447536,-748.88807713,0.0002316,2]
[393500567,1762733447545,-156.37770458,0.0002316,2]
[393500604,1762734485505,422.06585332,0.00010618,2]
[393500605,1762734487351,8977.94414668,0.000125,2]
[393500606,1762734504994,600.0,0.00017,2]
[393500607,1762734505021,10000.01,0.00017,2]
[393500608,1762734505048,10000.01,0.00017,2]
[393500609,1762734505075,10000.01,0.00017,2]
[393500610,1762734505101,6559.45150805,0.00017,2]
[393500611,1762734513360,214.22843292,0.00016,2]
[393500613,1762734515924,2444.15548293,0.0001,2]
[393500693,1762734631862,-536.24038126,0.00018339,2]
[393500694,1762734631876,-4463.75961874,0.00018339,2]
[393500695,1762734631886,-875.0,0.00018523,2]
[393500696,1762734631896,-5000.0,0.00018524,2]
[393500697,1762734631905,-300.0,0.00018709,2]
[393500698,1762734631915,-300.0,0.00018709,2]
[393500700,1762734631925,-300.0,0.00018709,2]
[393500702,1762734631935,-300.0,0.00018709,2]
[393500703,1762734631944,-300.0,0.00018709,2]
[393500704,1762734631954,-1388.06228992,0.00018711,2]
[393500705,1762734631964,-228.65086393,0.000189,2]
[393500707,1762734631975,-150.0,0.00019571,2]
[393500709,1762734631986,-300.0,0.00020399,2]
[393500710,1762734631995,-420.0,0.00020399,2]
[393500711,1762734632005,-286.0,0.00020399,2]
[393500712,1762734632015,-203.3473564,0.00021069,2]
[393500713,1762734632025,-150.28,0.000211,2]
[393500714,1762734632035,-19243.5537162,0.00021141,2]
[393500715,1762734632044,-150.28,0.000212,2]
[393500717,1762734632055,-150.28,0.000213,2]
[393500718,1762734632065,-150.28,0.000214,2]
[393500719,1762734632075,-2497.91734215,0.0002142,2]
[393500720,1762734632085,-150.28,0.000215,2]
[393500721,1762734632095,-926.3458209,0.0002152,2]
[393500722,1762734632106,-177.0,0.00021571,2]
[393500723,1762734632116,-150.28,0.000216,2]
[393500724,1762734632126,-1201.6321862,0.00021678,2]
[393500725,1762734632136,-150.28,0.000217,2]
[393500726,1762734632146,-150.28,0.000217,2]
[393500727,1762734632156,-150.28,0.000218,2]
[393500728,1762734632167,-154.54966117,0.00021867,2]
[393500729,1762734632177,-618.19864468,0.00021867,2]
[393500730,1762734632187,-1390.94695054,0.00021867,2]
[393500731,1762734632197,-2472.79457874,0.00021867,2]
[393500732,1762734632207,-150.28,0.000219,2]
[393500733,1762734632217,-150.28,0.00022,2]
[393500734,1762734632227,-208.3793647,0.00022073,2]
[393500735,1762734632238,-1483.52358844,0.00022082,2]
[393500736,1762734632249,-355.65543746,0.00022093,2]
[393500737,1762734632259,-150.28,0.000221,2]
[393500738,1762734632268,-758.22624535,0.00022157,7]
[393500739,1762734632279,-1170.06,0.00022172,10]
[393500740,1762734632289,-2231.23,0.00022172,10]
[393500741,1762734632301,-1859.35,0.00022172,10]
[393500742,1762734632311,-500.0,0.00022173,2]
[393500743,1762734632320,-500.0,0.00022173,2]
[393500744,1762734632330,-352.36448965,0.00022181,2]
[393500745,1762734632340,-500.0,0.00022182,2]
[393500746,1762734632349,-825.49317024,0.00022182,2]
[393500747,1762734632360,-500.0,0.00022182,2]
[393500748,1762734632370,-500.0,0.00022182,2]
[393500749,1762734632380,-500.0,0.00022182,2]
[393500750,1762734632390,-825.49317024,0.00022182,2]
[393500751,1762734632399,-500.0,0.00022182,2]
[393500752,1762734632409,-500.0,0.00022182,2]
[393500753,1762734632419,-500.0,0.00022182,2]
[393500754,1762734632428,-500.0,0.00022182,2]
[393500755,1762734632438,-500.0,0.00022182,2]
[393500756,1762734632448,-500.0,0.00022182,2]
[393500757,1762734632457,-500.0,0.00022182,2]
[393500758,1762734632466,-500.0,0.00022182,2]
[393500759,1762734632475,-825.49317024,0.00022182,2]
[393500760,1762734632484,-500.0,0.00022182,2]
[393500761,1762734632494,-500.0,0.00022182,2]
[393500762,1762734632504,-500.0,0.00022182,2]
[393500763,1762734632514,-825.49317024,0.00022182,2]
[393500764,1762734632526,-500.0,0.00022182,2]
[393500765,1762734632536,-500.0,0.00022182,2]
[393500766,1762734632545,-500.0,0.00022182,2]
[393500767,1762734632555,-500.0,0.00022182,2]
[393500768,1762734632566,-500.0,0.00022182,2]
[393500769,1762734632576,-500.0,0.00022182,2]
[393500770,1762734632585,-825.49317024,0.00022182,2]
[393500771,1762734632595,-500.0,0.00022182,2]
[393500772,1762734632606,-500.0,0.00022182,2]
[393500773,1762734632616,-500.0,0.00022182,2]
[393500774,1762734632626,-500.0,0.00022182,2]
[393500775,1762734632636,-500.0,0.00022182,2]
[393500776,1762734632649,-563.8998328,0.00022182,2]
[393500777,1762734632659,-825.49317024,0.00022182,2]
[393500778,1762734632668,-500.0,0.00022182,2]
[393500779,1762734632678,-500.0,0.00022182,2]
[393500780,1762734632687,-825.49317024,0.00022182,2]
[393500781,1762734632696,-500.0,0.00022182,2]
[393500782,1762734632706,-500.0,0.00022182,2]
[393500783,1762734632716,-500.0,0.00022182,2]
[393500784,1762734632725,-825.49317024,0.00022182,2]
[393500785,1762734632735,-160.74324305,0.00022182,2]
[393500786,1762734632745,-500.0,0.00022182,2]
[393500787,1762734632755,-825.49317024,0.00022182,2]
[393500788,1762734632764,-500.0,0.00022182,2]
[393500789,1762734632773,-500.0,0.00022182,2]
[393500790,1762734632782,-500.0,0.00022182,2]
[393500791,1762734632792,-825.49317024,0.00022182,2]
[393500792,1762734632802,-500.0,0.00022182,2]
[393500793,1762734632813,-500.0,0.00022182,2]
[393500794,1762734632823,-500.0,0.00022182,2]
[393500795,1762734632834,-825.49317024,0.00022182,2]
[393500796,1762734632843,-500.0,0.00022182,2]
[393500797,1762734632852,-825.49317024,0.00022182,2]
[393500798,1762734632863,-500.0,0.00022182,2]
[393500799,1762734632872,-500.0,0.00022182,2]
[393500800,1762734632883,-347.39953714,0.00022182,2]
[393500801,1762734632893,-825.49317024,0.00022182,2]
[393500802,1762734632903,-500.0,0.00022182,2]
[393500803,1762734632915,-825.49317024,0.00022182,2]
[393500804,1762734632926,-442.06405367,0.00022182,2]
[393500805,1762734632936,-825.49317024,0.00022182,2]
[393500806,1762734632947,-500.0,0.00022182,2]
[393500807,1762734632957,-825.49317024,0.00022182,2]
[393500808,1762734632967,-500.0,0.00022182,2]
[393500809,1762734632978,-825.49317024,0.00022182,2]
[393500810,1762734632988,-500.0,0.00022182,2]
[393500811,1762734632998,-500.0,0.00022182,2]
[393500812,1762734633008,-825.49317024,0.00022182,2]
[393500813,1762734633018,-825.49317024,0.00022182,2]
[393500814,1762734633028,-825.49317024,0.00022182,2]
[393500815,1762734633038,-825.49317024,0.00022182,2]
[393500816,1762734633049,-825.49317024,0.00022182,2]
[393500817,1762734633059,-825.49317024,0.00022182,2]
[393500818,1762734633068,-825.49317024,0.00022182,2]
[393500819,1762734633077,-825.49317024,0.00022182,2]
[393500820,1762734633087,-825.49317024,0.00022182,2]
[393500821,1762734633097,-825.49317024,0.00022182,2]
[393500822,1762734633109,-825.49317024,0.00022182,2]
[393500823,1762734633222,-825.49317024,0.00022182,2]
[393500824,1762734633238,-825.49317024,0.00022182,2]
[393500825,1762734633249,-825.49317024,0.00022182,2]
[393500826,1762734633260,-825.49317024,0.00022182,2]
[393500827,1762734633270,-825.49317024,0.00022182,2]
[393500828,1762734633280,-825.49317024,0.00022182,2]
[393500829,1762734633290,-825.49317024,0.00022182,2]
[393500830,1762734633300,-955.36542179,0.00022182,2]
[393500831,1762734633311,-955.36542179,0.00022182,2]
[393500832,1762734633323,-955.36542179,0.00022182,2]
[393500833,1762734633334,-955.36542179,0.00022182,2]
[393500834,1762734633346,-955.36542179,0.00022182,2]
[393500835,1762734633361,-955.36542179,0.00022182,2]
[393500836,1762734633373,-955.36542179,0.00022182,2]
[393500837,1762734633386,-955.36542179,0.00022182,2]
[393500838,1762734633398,-955.36542179,0.00022182,2]
[393500839,1762734633413,-955.36542179,0.00022182,2]
[393500840,1762734633431,-955.36542179,0.00022182,2]
[393500841,1762734633444,-955.36542179,0.00022182,2]
[393500842,1762734633455,-955.36542179,0.00022182,2]
[393500843,1762734633466,-955.36542179,0.00022182,2]
[393500844,1762734633477,-955.36542179,0.00022182,2]
[393500845,1762734633487,-955.36542179,0.00022182,2]
[393500846,1762734633497,-955.36542179,0.00022182,2]
[393500847,1762734633507,-955.36542179,0.00022182,2]
[393500848,1762734633518,-955.36542179,0.00022182,2]
[393500849,1762734633530,-955.36542179,0.00022182,2]
[393500850,1762734633540,-955.36542179,0.00022182,2]
[393500851,1762734633550,-955.36542179,0.00022182,2]
[393500852,1762734633559,-955.36542179,0.00022182,2]
[393500853,1762734633570,-955.36542179,0.00022182,2]
[393500854,1762734633580,-955.36542179,0.00022182,2]
[393500855,1762734633589,-955.36542179,0.00022182,2]
[393500856,1762734633600,-678.63493012,0.00022182,2]
[393500857,1762734633766,-263.05441659,0.00022182,2]
[393500888,1762734637859,-500.0,0.0002114,2]
[393500892,1762734637870,-304.24851308,0.0002114,2]
[393500894,1762734637880,-151.0,0.00022193,7]
[393500897,1762734637890,-587.0,0.00022241,2]
[393500900,1762734637899,-297.14140803,0.0002225,2]
[393500904,1762734637911,-485.03316807,0.0002225,2]
[393500907,1762734637920,-235.49460028,0.00022507,2]
[393500908,1762734637928,-3863.74152928,0.0002252,2]
[393500911,1762734637937,-288.73765403,0.00022554,2]
[393500913,1762734637946,-500.0,0.00022568,2]
[393500915,1762734637960,-500.0,0.00022568,2]
[393500916,1762734637969,-196.105744,0.00022568,7]
[393500917,1762734637979,-243.902876,0.00022569,7]
[393500918,1762734637988,-500.0,0.00022569,2]
[393500919,1762734637997,-500.0,0.0002257,2]
[393500920,1762734638007,-151.0,0.0002257,2]
[393500921,1762734638017,-198.0,0.0002257,2]
[393500922,1762734638027,-151.0,0.0002257,2]
[393500923,1762734638037,-248.08703416,0.0002257,2]
[393500924,1762734638046,-416.5097519,0.00022571,2]
[393500925,1762734638056,-46.94764228,0.00022571,2]
[393500926,1762734638068,-20052.26805972,0.00022571,2]
[393500927,1762734638078,-106.52230245,0.00022571,7]
[393500957,1762734643166,-44.47769755,0.00022571,7]
[393500959,1762734643176,-500.0,0.00022573,2]
[393500961,1762734643185,-500.0,0.00022573,2]
[393500963,1762734643194,-151.0,0.00022625,2]
[393500965,1762734643203,-183.304,0.00022625,2]
[393500967,1762734643213,-355.65543744,0.0002263,2]
[393500969,1762734643222,-151.0,0.0002268,2]
[393500971,1762734643232,-242.39200864,0.00022734,2]
[393500974,1762734643242,-160.0,0.00022924,2]
[393500977,1762734643251,-151.0,0.00022956,7]
[393500979,1762734643261,-151.0,0.00023057,7]
[393500981,1762734643271,-155.827806,0.00023057,7]
[393500983,1762734643280,-500.0,0.00023073,2]
[393500985,1762734643289,-500.0,0.00023121,2]
[393500987,1762734643298,-1000.0,0.00023121,2]
[393500989,1762734643308,-355.65543744,0.00023167,2]
[393500991,1762734643318,-150.0,0.000232,2]
[393500993,1762734643328,-150.0,0.000232,2]
[393500995,1762734643338,-150.0,0.000232,2]
[393500997,1762734643347,-3029.87207641,0.00023203,7]
[393500999,1762734643355,-450.04153652,0.00023213,2]
[393501001,1762734643367,-49.95846348,0.00023213,2]
[393501003,1762734643378,-521.12943612,0.00023223,2]
[393501005,1762734643387,-151.0,0.00023267,7]
[393501007,1762734643396,-151.0,0.00023288,7]
[393501009,1762734643405,-151.0,0.00023288,7]
[393501011,1762734643414,-81.2121004,0.00023288,7]
[393501164,1762734646220,-844.3836,0.00022991,2]
[393501165,1762734646232,-4155.6164,0.00022991,2]
[393501166,1762734646242,-124.98767241,0.00023288,7]
[393501167,1762734646254,-25.85670919,0.00023288,7]
[393501168,1762734646262,-151.0,0.00023288,7]
[393501169,1762734646271,-151.0,0.00023288,7]
[393501170,1762734646281,-151.0,0.00023288,7]
[393501171,1762734646290,-151.0,0.00023288,7]
[393501172,1762734646299,-151.0,0.00023288,7]
[393501173,1762734646310,-148.80672888,0.00023288,7]
[393501174,1762734646322,-2.19327112,0.00023288,7]
[393501175,1762734646331,-151.0,0.00023288,7]
[393501176,1762734646340,-151.0,0.00023288,7]
[393501177,1762734646350,-159.23858,0.00023288,7]
[393501178,1762734646360,-152.657247,0.00023288,7]
[393501179,1762734646371,-151.0,0.00023288,7]
[393501180,1762734646380,-164.813395,0.00023288,7]
[393501181,1762734646390,-151.0,0.00023288,7]
[393501182,1762734646400,-151.0,0.00023288,7]
[393501183,1762734646410,-151.0,0.00023288,7]
[393501184,1762734646422,-151.0,0.00023288,7]
[393501185,1762734646432,-167.148454,0.00023288,7]
[393501186,1762734646442,-239.714731,0.00023288,7]
[393501187,1762734646452,-153.244103,0.00023288,7]
[393501188,1762734646461,-151.0,0.00023288,7]
[393501189,1762734646470,-151.0,0.00023288,7]
[393501190,1762734646480,-151.0,0.00023288,7]
[393501191,1762734646490,-151.0,0.00023288,7]
[393501192,1762734646499,-118.08021888,0.00023288,7]
[393501193,1762734646514,-32.91978112,0.00023288,7]
[393501194,1762734646525,-151.0,0.00023288,7]
[393501195,1762734646538,-151.0,0.00023288,7]
[393501196,1762734646548,-242.15873,0.00023288,7]
[393501197,1762734646557,-136.90549469,0.00023288,7]
[393501198,1762734646706,-105.25323531,0.00023288,7]
[393501199,1762734646720,-242.15873,0.00023288,7]
[393501200,1762734646728,-242.15873,0.00023288,7]
[393501201,1762734646738,-242.15873,0.00023288,7]
[393501202,1762734646748,-242.15873,0.00023288,7]
[393501203,1762734646757,-242.15873,0.00023288,7]
[393501204,1762734646767,-242.15873,0.00023288,7]
[393501205,1762734646776,-242.15873,0.00023288,7]
[393501206,1762734646787,-242.15873,0.00023288,7]
[393501207,1762734646798,-242.15873,0.00023288,7]
[393501208,1762734646807,-242.15873,0.00023288,7]
[393501209,1762734646817,-242.15873,0.00023288,7]
[393501210,1762734646827,-242.15873,0.00023288,7]
[393501211,1762734646838,-242.15873,0.00023288,7]
[393501212,1762734646847,-242.15873,0.00023288,7]
[393501213,1762734646857,-242.15873,0.00023288,7]
[393501214,1762734646866,-242.15873,0.00023288,7]
[393501215,1762734646876,-242.15873,0.00023288,7]
[393501216,1762734646886,-242.15872,0.00023288,7]
[393501217,1762734646897,-151.0,0.00023288,7]
[393501218,1762734646907,-151.0,0.00023288,7]
[393501219,1762734646918,-151.0,0.00023288,7]
[393501220,1762734646928,-151.0,0.00023288,7]
[393501221,1762734646937,-151.0,0.00023288,7]
[393501222,1762734646947,-151.0,0.00023288,7]
[393501223,1762734646957,-151.0,0.00023288,7]
[393501224,1762734646966,-151.0,0.00023288,7]
[393501225,1762734646976,-151.0,0.00023288,7]
[393501226,1762734646986,-151.0,0.00023288,7]
[393501227,1762734646996,-151.0,0.00023288,7]
[393501228,1762734647006,-238.029451,0.00023288,7]
[393501229,1762734647015,-151.0,0.00023288,7]
[393501230,1762734647024,-85.86018369,0.00023288,7]
[393501231,1762734647037,-65.13981631,0.00023288,7]
[393501232,1762734647048,-294.0535,0.00023288,7]
[393501233,1762734647058,-151.0,0.00023288,7]
[393501234,1762734647068,-151.0,0.00023288,7]
[393501235,1762734647078,-151.0,0.00023288,7]
[393501236,1762734647087,-151.0,0.00023288,7]
[393501237,1762734647097,-151.0,0.00023288,7]
[393501238,1762734647107,-289.117274,0.00023288,7]
[393501239,1762734647116,-180.361395,0.00023288,7]
[393501240,1762734647128,-151.0,0.00023288,7]
[393501241,1762734647137,-151.0,0.00023288,7]
[393501242,1762734647147,-151.0,0.00023288,7]
[393501243,1762734647157,-221.528552,0.00023288,7]
[393501244,1762734647168,-168.334327,0.00023288,7]
[393501245,1762734647178,-151.0,0.00023288,7]
[393501246,1762734647188,-151.0,0.00023288,7]
[393501247,1762734647199,-151.0,0.00023288,7]
[393501248,1762734647208,-151.0,0.00023288,7]
[393501249,1762734647219,-151.0,0.00023288,7]
[393501250,1762734647231,-151.0,0.00023288,7]
[393501251,1762734647241,-151.0,0.00023288,7]
[393501252,1762734647254,-188.90877199,0.00023288,7]
[393501253,1762734647265,-200.0,0.00023323,2]
[393501254,1762734647275,-151.0,0.00023324,7]
[393501255,1762734647283,-245.308124,0.00023324,7]
[393501256,1762734647294,-151.0,0.00023324,7]
[393501257,1762734647304,-151.0,0.00023324,7]
[393501258,1762734647314,-151.0,0.00023324,7]
[393501259,1762734647324,-169.03263289,0.00023367,2]
[393501260,1762734647334,-500.0,0.00023373,2]
[393501261,1762734647343,-500.0,0.00023373,2]
[393501262,1762734647353,-2104.52,0.000234,7]
[393501263,1762734647363,-210.001083,0.000234,2]
[393501264,1762734647374,-210.001083,0.0002343,2]
[393501265,1762734647384,-210.001083,0.0002346,2]
[393501266,1762734647394,-210.001083,0.0002349,2]
[393501267,1762734647404,-210.001083,0.0002352,2]
[393501268,1762734647414,-204.0,0.00023571,2]
[393501269,1762734647424,-282.26230148,0.00023642,2]
[393501270,1762734647433,-821.42258839,0.00023668,2]
[393501271,1762734647444,-178.57741161,0.00023668,2]
[393501272,1762734647454,-185.41784891,0.00023901,3]
[393501273,1762734647463,-577.85277356,0.00024054,2]
[393501274,1762734693625,689.0,0.00017681,2]
[393501276,1762734833320,9000.0,0.00032877,120]
[393501284,1762735528708,151.0,0.00019304,7]
[393501285,1762735529125,151.0,0.00019304,7]
[393501286,1762735529439,151.0,0.00019304,7]
[393501287,1762735529771,153.425311,0.00019423,7]
[393501288,1762735624594,5000.0,0.00017681,2]
[393501289,1762735632526,203.85,0.00019304,7]
[393501290,1762735632834,203.85,0.00019304,7]
[393501291,1762735633425,203.85,0.00019304,7]
[393501292,1762735633717,203.85,0.00019452,7]
[393501293,1762735634358,203.85,0.00019304,7]
[393501294,1762735634663,203.85,0.00019304,7]
[393501295,1762735634959,203.85,0.00019304,7]
[393501296,1762735635277,203.85,0.00019452,7]
[393501297,1762735635903,203.85,0.00019304,7]
[393501298,1762735636303,203.85,0.00019304,7]
[393501299,1762735636598,203.85,0.00019304,7]
[393501300,1762735636885,203.85,0.00019452,7]
[393501301,1762735637450,203.85,0.00019304,7]
[393501302,1762735638197,203.85,0.00019304,7]
[393501303,1762735638988,203.85,0.00019304,7]
[393501304,1762735639266,203.85,0.00019452,7]
[393501305,1762735647224,5000.0,0.00017681,2]
[393501306,1762735738972,-276.11455327,0.00017771,2]
[393501307,1762735740565,-191.69335167,0.00017771,2]
[393501308,1762735746511,-254.67621851,0.00017771,2]
[393501309,1762735768812,-144.92689609,0.00017771,2]
[393501310,1762735768832,-57.31201318,0.00017771,2]
[393501319,1762735777758,182.46164,0.00019302,7]
[393501320,1762735777959,182.46164,0.00019302,7]
[393501321,1762735778245,182.46164,0.00019302,7]
[393501322,1762735778524,182.46164,0.00019306,7]
[393501323,1762735779091,182.46164,0.00019302,7]
[393501324,1762735779409,182.46164,0.00019302,7]
[393501325,1762735779690,182.46164,0.00019302,7]